[Event "*** Titled Tuesday 3|2 Blitz"]
[Site "Chess.com"]
[Date "2016.07.05"]
[Round "4"]
[White "pedromartinez91"]
[Black "Aragon"]
[Result "1-0"]
[WhiteElo "2282"]
[BlackElo "2085"]
[TimeControl "180+2"]
[EndTime "11:43:16 PDT"]
[Termination "pedromartinez91 won by resignation"]

1. e4 {[%clk 0:03:01.9]} 1... e6 {[%clk 0:02:57.6]} 2. d4 {[%clk 0:03:01.8]}
2... d5 {[%clk 0:02:56.3]} 3. Nd2 {[%clk 0:03:01.5]} 3... dxe4 {[%clk
0:02:53.1]} 4. Nxe4 {[%clk 0:03:00.2]} 4... Bd7 {[%clk 0:02:55]} 5. Nf3 {[%clk
0:02:59]} 5... Bc6 {[%clk 0:02:34.8]} 6. Bd3 {[%clk 0:02:57.4]} 6... Nd7 {[%clk
0:02:33.7]} 7. O-O {[%clk 0:02:57.1]} 7... Ngf6 {[%clk 0:02:32.5]} 8. Qe2 {[%clk
0:02:56.2]} 8... Be7 {[%clk 0:02:27.5]} 9. Bg5 {[%clk 0:02:55.9]} 9... Nxe4
{[%clk 0:02:16.6]} 10. Bxe7 {[%clk 0:02:56]} 10... Nc3 {[%clk 0:02:11.9]} 11.
bxc3 {[%clk 0:02:48.8]} 11... Qxe7 {[%clk 0:02:09.3]} 12. c4 {[%clk 0:02:48.6]}
12... Bxf3 {[%clk 0:01:46.3]} 13. Qxf3 {[%clk 0:02:47.6]} 13... c6 {[%clk
0:01:46.6]} 14. Rfe1 {[%clk 0:02:45.8]} 14... Nf6 {[%clk 0:01:43.4]} 15. d5
{[%clk 0:02:44.7]} 15... cxd5 {[%clk 0:01:40.3]} 16. cxd5 {[%clk 0:02:45.2]}
16... Nxd5 {[%clk 0:01:39.2]} 17. Be4 {[%clk 0:02:46.3]} 17... O-O-O {[%clk
0:01:25.2]} 18. Bxd5 {[%clk 0:02:42.1]} 1-0

[Event "*** Titled Tuesday 3|2 Blitz"]
[Site "Chess.com"]
[Date "2016.07.05"]
[Round "4"]
[White "Abrito99"]
[Black "BellJackson95"]
[Result "1-0"]
[WhiteElo "2337"]
[BlackElo "2186"]
[TimeControl "180+2"]
[EndTime "11:43:45 PDT"]
[Termination "Abrito99 won by resignation"]

1. e4 {[%clk 0:03:00.2]} 1... e5 {[%clk 0:02:56.8]} 2. Nf3 {[%clk 0:03:00.9]}
2... Nc6 {[%clk 0:02:58.2]} 3. Bc4 {[%clk 0:03:01.8]} 3... Nf6 {[%clk
0:02:56.4]} 4. d3 {[%clk 0:03:02.2]} 4... Bc5 {[%clk 0:02:57.2]} 5. O-O {[%clk
0:03:02.9]} 5... O-O {[%clk 0:02:58.3]} 6. c3 {[%clk 0:03:04.1]} 6... d6 {[%clk
0:02:59.3]} 7. Bb3 {[%clk 0:03:04.9]} 7... a6 {[%clk 0:03:00.7]} 8. h3 {[%clk
0:03:04.5]} 8... Ba7 {[%clk 0:03:01.9]} 9. Re1 {[%clk 0:03:06]} 9... Ne7 {[%clk
0:03:03.3]} 10. Nbd2 {[%clk 0:02:57.5]} 10... Ng6 {[%clk 0:03:04.4]} 11. Nf1
{[%clk 0:02:59.1]} 11... c6 {[%clk 0:03:05.6]} 12. Ng3 {[%clk 0:02:50.9]} 12...
Re8 {[%clk 0:03:01.6]} 13. d4 {[%clk 0:02:51.1]} 13... exd4 {[%clk 0:03:00.9]}
14. cxd4 {[%clk 0:02:53]} 14... Be6 {[%clk 0:02:34.3]} 15. Bc2 {[%clk
0:02:53.9]} 15... d5 {[%clk 0:02:14.3]} 16. e5 {[%clk 0:02:50.8]} 16... Nd7
{[%clk 0:02:15.4]} 17. Ng5 {[%clk 0:02:41.5]} 17... h6 {[%clk 0:02:06]} 18. Nxe6
{[%clk 0:02:17]} 18... Rxe6 {[%clk 0:02:07.9]} 19. Qg4 {[%clk 0:02:11.3]} 19...
c5 {[%clk 0:02:03.2]} 20. Bf5 {[%clk 0:02:12]} 20... Rc6 {[%clk 0:01:47.6]} 21.
Bxd7 {[%clk 0:02:07]} 21... h5 {[%clk 0:01:49]} 22. Nxh5 {[%clk 0:02:02.4]} 1-0

[Event "*** Titled Tuesday 3|2 Blitz"]
[Site "Chess.com"]
[Date "2016.07.05"]
[Round "4"]
[White "rikyshi"]
[Black "ajkom197"]
[Result "1/2-1/2"]
[WhiteElo "2126"]
[BlackElo "2240"]
[TimeControl "180+2"]
[EndTime "11:44:35 PDT"]
[Termination "Game drawn by agreement"]

1. e4 {[%clk 0:03:01.9]} 1... e6 {[%clk 0:02:58.3]} 2. d4 {[%clk 0:03:01.1]}
2... d5 {[%clk 0:02:58.7]} 3. Nc3 {[%clk 0:03:02.1]} 3... Nf6 {[%clk 0:02:59]}
4. Bg5 {[%clk 0:03:01.4]} 4... Be7 {[%clk 0:02:59.8]} 5. e5 {[%clk 0:03:00.1]}
5... Nfd7 {[%clk 0:03:00.9]} 6. h4 {[%clk 0:02:58.5]} 6... h6 {[%clk 0:03:02.2]}
7. Bxe7 {[%clk 0:02:56.8]} 7... Qxe7 {[%clk 0:03:04.1]} 8. Qg4 {[%clk
0:02:57.9]} 8... O-O {[%clk 0:03:05.2]} 9. O-O-O {[%clk 0:02:57.2]} 9... c5
{[%clk 0:03:06.2]} 10. f4 {[%clk 0:02:57.9]} 10... Nc6 {[%clk 0:02:56.4]} 11.
Nf3 {[%clk 0:02:57.4]} 11... cxd4 {[%clk 0:02:55.4]} 12. Nb5 {[%clk 0:02:52.7]}
12... f5 {[%clk 0:02:56.6]} 13. Qg6 {[%clk 0:02:49.4]} 13... Qf7 {[%clk
0:02:50.5]} 14. Qxf7+ {[%clk 0:02:48.1]} 14... Kxf7 {[%clk 0:02:52.4]} 15. Nfxd4
{[%clk 0:02:45.8]} 15... Nc5 {[%clk 0:02:49.3]} 16. Nd6+ {[%clk 0:02:44.5]}
16... Ke7 {[%clk 0:02:49.1]} 17. Rh3 {[%clk 0:02:30.6]} 17... Ne4 {[%clk
0:02:46.3]} 18. Rb3 {[%clk 0:02:23]} 18... Nxd6 {[%clk 0:02:44.8]} 19. exd6+
{[%clk 0:02:12.1]} 19... Kxd6 {[%clk 0:02:46]} 20. Nb5+ {[%clk 0:02:09.9]} 20...
Ke7 {[%clk 0:02:47.2]} 21. c4 {[%clk 0:02:08.6]} 21... Na5 {[%clk 0:02:14.7]}
22. Rb4 {[%clk 0:01:55.5]} 22... Nxc4 {[%clk 0:02:14.8]} 23. Bxc4 {[%clk
0:01:39.3]} 23... dxc4 {[%clk 0:02:16.7]} 24. Nc7 {[%clk 0:01:39]} 24... Rb8
{[%clk 0:02:13.8]} 25. Na6 {[%clk 0:01:39.6]} 25... Ra8 {[%clk 0:02:15.2]} 26.
Nc7 {[%clk 0:01:39.7]} 1/2-1/2

[Event "*** Titled Tuesday 3|2 Blitz"]
[Site "Chess.com"]
[Date "2016.07.05"]
[Round "4"]
[White "David_Klein"]
[Black "Masterbeaterr"]
[Result "1-0"]
[WhiteElo "2410"]
[BlackElo "2284"]
[TimeControl "180+2"]
[EndTime "11:45:15 PDT"]
[Termination "David_Klein won by checkmate"]

1. e4 {[%clk 0:03:01.9]} 1... e5 {[%clk 0:03:01]} 2. Nf3 {[%clk 0:03:02.6]} 2...
Nc6 {[%clk 0:03:02.2]} 3. Bb5 {[%clk 0:03:03.7]} 3... a6 {[%clk 0:03:03.1]} 4.
Ba4 {[%clk 0:03:04.7]} 4... Nf6 {[%clk 0:03:04.1]} 5. d3 {[%clk 0:03:06.2]} 5...
d6 {[%clk 0:03:03.2]} 6. c3 {[%clk 0:03:07]} 6... g6 {[%clk 0:03:04.3]} 7. Nbd2
{[%clk 0:03:08.1]} 7... Bg7 {[%clk 0:03:05.4]} 8. Nf1 {[%clk 0:03:09.6]} 8...
O-O {[%clk 0:03:06.2]} 9. Bg5 {[%clk 0:03:11.1]} 9... h6 {[%clk 0:03:06.5]} 10.
Bh4 {[%clk 0:03:12]} 10... g5 {[%clk 0:03:07.4]} 11. Bg3 {[%clk 0:03:13]} 11...
Ne7 {[%clk 0:03:04.1]} 12. Ne3 {[%clk 0:03:11]} 12... Ng6 {[%clk 0:03:04.4]} 13.
h4 {[%clk 0:03:08.7]} 13... g4 {[%clk 0:03:04.6]} 14. h5 {[%clk 0:03:01.4]}
14... Nf4 {[%clk 0:03:01.8]} 15. Nh4 {[%clk 0:02:57]} 15... N4xh5 {[%clk
0:02:55.8]} 16. Nhf5 {[%clk 0:02:57]} 16... Nxg3 {[%clk 0:02:50.9]} 17. fxg3
{[%clk 0:02:55.8]} 17... h5 {[%clk 0:02:51.8]} 18. Qd2 {[%clk 0:02:41.6]} 18...
d5 {[%clk 0:02:32.7]} 19. exd5 {[%clk 0:02:36]} 19... Bxf5 {[%clk 0:02:30.2]}
20. Nxf5 {[%clk 0:02:36.7]} 20... Nxd5 {[%clk 0:02:25]} 21. Rxh5 {[%clk
0:02:35.8]} 21... f6 {[%clk 0:02:08.4]} 22. Bb3 {[%clk 0:02:32.1]} 22... c6
{[%clk 0:02:09.7]} 23. O-O-O {[%clk 0:02:22.5]} 23... Kf7 {[%clk 0:02:02.6]} 24.
Rh7 {[%clk 0:02:22.7]} 24... Rg8 {[%clk 0:02:03.9]} 25. Qh6 {[%clk 0:02:15.3]}
25... Qf8 {[%clk 0:02:04.2]} 26. Qh5+ {[%clk 0:02:05.4]} 26... Ke6 {[%clk
0:02:03.1]} 27. Kb1 {[%clk 0:01:56.1]} 27... Rd8 {[%clk 0:01:50.1]} 28. Qxg4
{[%clk 0:01:49.7]} 28... Bh8 {[%clk 0:01:39.5]} 29. Bxd5+ {[%clk 0:01:35.2]}
29... cxd5 {[%clk 0:01:35.7]} 30. Nd4+ {[%clk 0:01:35.8]} 30... Kd6 {[%clk
0:01:36.1]} 31. Qe6+ {[%clk 0:01:36.8]} 31... Kc5 {[%clk 0:01:37.5]} 32. Nb3+
{[%clk 0:01:38]} 32... Kb5 {[%clk 0:01:37.7]} 33. Rxb7+ {[%clk 0:01:39.3]} 33...
Ka4 {[%clk 0:01:37.7]} 34. Qxa6# {[%clk 0:01:40.3]} 1-0

[Event "*** Titled Tuesday 3|2 Blitz"]
[Site "Chess.com"]
[Date "2016.07.05"]
[Round "4"]
[White "Frolyanov_D"]
[Black "Sanan_Sjugirov"]
[Result "1-0"]
[WhiteElo "2467"]
[BlackElo "2658"]
[TimeControl "180+2"]
[EndTime "11:45:24 PDT"]
[Termination "Frolyanov_D won by resignation"]

1. e4 {[%clk 0:03:01.9]} 1... e5 {[%clk 0:03:00.5]} 2. Nf3 {[%clk 0:03:02.5]}
2... Nc6 {[%clk 0:03:01.8]} 3. Bb5 {[%clk 0:03:03.2]} 3... a6 {[%clk 0:03:03.1]}
4. Ba4 {[%clk 0:03:04.4]} 4... Nf6 {[%clk 0:03:04.3]} 5. O-O {[%clk 0:03:05.4]}
5... Be7 {[%clk 0:03:05.5]} 6. Re1 {[%clk 0:03:06.3]} 6... b5 {[%clk 0:03:05.6]}
7. Bb3 {[%clk 0:03:07.4]} 7... d6 {[%clk 0:03:06.9]} 8. c3 {[%clk 0:03:08.4]}
8... O-O {[%clk 0:03:07.7]} 9. h3 {[%clk 0:03:09.8]} 9... Na5 {[%clk 0:03:09]}
10. Bc2 {[%clk 0:03:10.5]} 10... c5 {[%clk 0:03:10.6]} 11. d4 {[%clk 0:03:11.6]}
11... Qc7 {[%clk 0:03:12.2]} 12. Nbd2 {[%clk 0:03:11.2]} 12... cxd4 {[%clk
0:03:12.3]} 13. cxd4 {[%clk 0:03:11.9]} 13... Nc6 {[%clk 0:03:13.6]} 14. Nf1
{[%clk 0:03:10.8]} 14... Nxd4 {[%clk 0:03:05.7]} 15. Nxd4 {[%clk 0:03:09.3]}
15... exd4 {[%clk 0:03:07.6]} 16. Bg5 {[%clk 0:03:09.5]} 16... Bb7 {[%clk
0:03:04.4]} 17. Rc1 {[%clk 0:03:05.9]} 17... Qb6 {[%clk 0:03:01.2]} 18. Ng3
{[%clk 0:03:05.1]} 18... Rfe8 {[%clk 0:02:19.3]} 19. Nf5 {[%clk 0:03:01.1]}
19... Bd8 {[%clk 0:02:20.4]} 20. Qf3 {[%clk 0:02:47.3]} 20... Rc8 {[%clk
0:02:10.5]} 21. Qg3 {[%clk 0:02:33]} 21... Nh5 {[%clk 0:01:44.5]} 22. Qg4 {[%clk
0:02:32.3]} 22... Bxg5 {[%clk 0:01:43.4]} 23. Qxg5 {[%clk 0:02:30.6]} 23... g6
{[%clk 0:01:44.5]} 24. Ne7+ {[%clk 0:02:23]} 24... Rxe7 {[%clk 0:01:35.2]} 25.
Qxe7 {[%clk 0:02:24.9]} 25... Nf4 {[%clk 0:01:34]} 26. Bb3 {[%clk 0:02:21]}
26... Ne2+ {[%clk 0:01:04.8]} 27. Kh1 {[%clk 0:02:09.7]} 1-0

[Event "*** Titled Tuesday 3|2 Blitz"]
[Site "Chess.com"]
[Date "2016.07.05"]
[Round "4"]
[White "oskariot"]
[Black "josiwales"]
[Result "1-0"]
[WhiteElo "2276"]
[BlackElo "2127"]
[TimeControl "180+2"]
[EndTime "11:46:07 PDT"]
[Termination "oskariot won by resignation"]

1. e4 {[%clk 0:03:01.9]} 1... c5 {[%clk 0:03:00.3]} 2. Nf3 {[%clk 0:03:02.8]}
2... d6 {[%clk 0:03:01.5]} 3. d4 {[%clk 0:03:03.5]} 3... cxd4 {[%clk 0:03:02.6]}
4. Nxd4 {[%clk 0:03:04.9]} 4... Nf6 {[%clk 0:03:04]} 5. Nc3 {[%clk 0:03:06.6]}
5... g6 {[%clk 0:03:05.4]} 6. Be3 {[%clk 0:03:03.2]} 6... Bg7 {[%clk 0:03:06.4]}
7. f3 {[%clk 0:03:04.6]} 7... a6 {[%clk 0:03:03.6]} 8. Qd2 {[%clk 0:03:02.8]}
8... h5 {[%clk 0:03:04.5]} 9. Bc4 {[%clk 0:02:54.3]} 9... b5 {[%clk 0:03:04.9]}
10. Bb3 {[%clk 0:02:55.6]} 10... Bb7 {[%clk 0:03:05.5]} 11. O-O-O {[%clk
0:02:57]} 11... Nbd7 {[%clk 0:03:03.1]} 12. h3 {[%clk 0:02:58]} 12... Rc8 {[%clk
0:03:00.8]} 13. g4 {[%clk 0:02:55.2]} 13... Ne5 {[%clk 0:03:01.7]} 14. Kb1
{[%clk 0:02:20.9]} 14... Nfd7 {[%clk 0:02:37.6]} 15. f4 {[%clk 0:01:54.1]} 15...
Nc4 {[%clk 0:02:37.2]} 16. Bxc4 {[%clk 0:01:54.7]} 16... Rxc4 {[%clk 0:02:39.1]}
17. f5 {[%clk 0:01:49.3]} 17... b4 {[%clk 0:02:25]} 18. Nd5 {[%clk 0:01:42.5]}
18... Nc5 {[%clk 0:02:20.8]} 19. Qe2 {[%clk 0:01:32]} 19... Bxd5 {[%clk
0:02:05.8]} 20. exd5 {[%clk 0:01:30.1]} 20... Rxd4 {[%clk 0:02:02]} 21. Bxd4
{[%clk 0:01:29.5]} 21... Bxd4 {[%clk 0:02:03.5]} 22. Rxd4 {[%clk 0:01:28.1]}
22... hxg4 {[%clk 0:02:01.1]} 23. fxg6 {[%clk 0:01:29.2]} 23... fxg6 {[%clk
0:01:50.8]} 24. Qxg4 {[%clk 0:01:25.4]} 24... Qd7 {[%clk 0:01:51.8]} 25. Qxg6+
{[%clk 0:01:22.2]} 25... Kd8 {[%clk 0:01:52.8]} 26. h4 {[%clk 0:01:19.3]} 26...
a5 {[%clk 0:01:51.7]} 27. h5 {[%clk 0:01:18.8]} 27... Qe8 {[%clk 0:01:51.9]} 28.
Qxe8+ {[%clk 0:01:10.9]} 28... Kxe8 {[%clk 0:01:51.8]} 29. h6 {[%clk 0:01:10.6]}
29... Kf7 {[%clk 0:01:48.8]} 30. Rg4 {[%clk 0:01:09.5]} 30... Rh7 {[%clk
0:01:46.6]} 31. Rf1+ {[%clk 0:00:57.3]} 31... Ke8 {[%clk 0:01:47.1]} 32. Rg8+
{[%clk 0:00:56.4]} 32... Kd7 {[%clk 0:01:45.9]} 33. Rh1 {[%clk 0:00:56.1]} 1-0

[Event "*** Titled Tuesday 3|2 Blitz"]
[Site "Chess.com"]
[Date "2016.07.05"]
[Round "4"]
[White "LazovT"]
[Black "popov_m"]
[Result "1-0"]
[WhiteElo "2302"]
[BlackElo "2213"]
[TimeControl "180+2"]
[EndTime "11:46:55 PDT"]
[Termination "LazovT won by resignation"]

1. e4 {[%clk 0:03:01.9]} 1... e6 {[%clk 0:02:55.9]} 2. d4 {[%clk 0:03:02.1]}
2... d5 {[%clk 0:02:57]} 3. exd5 {[%clk 0:03:04]} 3... exd5 {[%clk 0:02:57.9]}
4. Bd3 {[%clk 0:03:05]} 4... Nf6 {[%clk 0:02:58.9]} 5. Ne2 {[%clk 0:03:06]} 5...
c5 {[%clk 0:02:58]} 6. Bb5+ {[%clk 0:02:55.4]} 6... Nc6 {[%clk 0:02:56.6]} 7.
Nbc3 {[%clk 0:02:53.3]} 7... Be7 {[%clk 0:02:52.9]} 8. dxc5 {[%clk 0:02:52.1]}
8... Bxc5 {[%clk 0:02:50.2]} 9. O-O {[%clk 0:02:53.4]} 9... O-O {[%clk
0:02:48.5]} 10. Bg5 {[%clk 0:02:50.5]} 10... Be6 {[%clk 0:02:47]} 11. Nf4 {[%clk
0:02:49.3]} 11... d4 {[%clk 0:02:06.6]} 12. Nxe6 {[%clk 0:02:45.8]} 12... fxe6
{[%clk 0:02:06.9]} 13. Ne4 {[%clk 0:02:47.7]} 13... Be7 {[%clk 0:02:07.1]} 14.
Re1 {[%clk 0:02:43.8]} 14... Qd5 {[%clk 0:01:57.7]} 15. Bxf6 {[%clk 0:02:38.2]}
15... Bxf6 {[%clk 0:01:52.8]} 16. Qe2 {[%clk 0:02:39.4]} 16... Ne5 {[%clk
0:01:09.5]} 17. Nxf6+ {[%clk 0:02:33.1]} 17... gxf6 {[%clk 0:01:09.5]} 18. f4
{[%clk 0:02:31.3]} 18... Ng6 {[%clk 0:00:53.7]} 19. Qxe6+ {[%clk 0:02:27.6]}
19... Qxe6 {[%clk 0:00:54.2]} 20. Rxe6 {[%clk 0:02:29.5]} 20... Nxf4 {[%clk
0:00:55]} 21. Re7 {[%clk 0:02:27.6]} 21... Rac8 {[%clk 0:00:53.6]} 22. Ba4
{[%clk 0:02:23.4]} 22... Kh8 {[%clk 0:00:43.9]} 23. Rf1 {[%clk 0:02:18.6]} 23...
Ng6 {[%clk 0:00:43.2]} 24. Rxb7 {[%clk 0:02:18.8]} 24... Rb8 {[%clk 0:00:40.6]}
25. Rxa7 {[%clk 0:02:14.6]} 25... Rxb2 {[%clk 0:00:30.3]} 26. Bb3 {[%clk
0:02:15.6]} 26... Ne5 {[%clk 0:00:31.3]} 27. Rf4 {[%clk 0:02:08.7]} 27... d3
{[%clk 0:00:21.6]} 28. Rh4 {[%clk 0:02:07.5]} 28... Nf7 {[%clk 0:00:11.1]} 29.
cxd3 {[%clk 0:02:04.6]} 29... Ng5 {[%clk 0:00:07.6]} 30. Rf4 {[%clk 0:01:59]}
30... Re8 {[%clk 0:00:08.1]} 31. h4 {[%clk 0:01:56.3]} 31... Ne6 {[%clk
0:00:03.6]} 32. Rxf6 {[%clk 0:01:54]} 32... Nd4 {[%clk 0:00:03.6]} 33. Bc4
{[%clk 0:01:43.9]} 33... Rc2 {[%clk 0:00:03.9]} 34. Rff7 {[%clk 0:01:42.6]}
34... Nf3+ {[%clk 0:00:04.3]} 35. Rxf3 {[%clk 0:01:42.4]} 1-0

[Event "*** Titled Tuesday 3|2 Blitz"]
[Site "Chess.com"]
[Date "2016.07.05"]
[Round "4"]
[White "Hikaru"]
[Black "Tonychess32"]
[Result "1-0"]
[WhiteElo "2996"]
[BlackElo "2414"]
[TimeControl "180+2"]
[EndTime "11:47:31 PDT"]
[Termination "Hikaru won on time"]

1. d4 {[%clk 0:03:01.9]} 1... d5 {[%clk 0:03:00.3]} 2. c4 {[%clk 0:03:02.9]}
2... e6 {[%clk 0:03:01.6]} 3. Nc3 {[%clk 0:03:03.1]} 3... Nf6 {[%clk 0:03:02.9]}
4. e3 {[%clk 0:03:01]} 4... Be7 {[%clk 0:03:03.8]} 5. cxd5 {[%clk 0:03:00.7]}
5... exd5 {[%clk 0:03:04.4]} 6. Bd3 {[%clk 0:03:02.4]} 6... O-O {[%clk
0:03:04.5]} 7. Nf3 {[%clk 0:03:03.9]} 7... c6 {[%clk 0:03:01.9]} 8. O-O {[%clk
0:03:04.6]} 8... Re8 {[%clk 0:02:57.7]} 9. Ne5 {[%clk 0:03:05.5]} 9... Nbd7
{[%clk 0:02:58.7]} 10. f4 {[%clk 0:03:06.3]} 10... Nf8 {[%clk 0:02:56.5]} 11.
Qc2 {[%clk 0:03:00.7]} 11... Bd6 {[%clk 0:02:41.6]} 12. Bd2 {[%clk 0:03:00.9]}
12... h6 {[%clk 0:02:27.8]} 13. Be1 {[%clk 0:02:59.9]} 13... N6d7 {[%clk
0:02:22]} 14. Bf2 {[%clk 0:02:56.6]} 14... Be7 {[%clk 0:02:18.1]} 15. Rae1
{[%clk 0:02:56.9]} 15... Bh4 {[%clk 0:02:18.9]} 16. g3 {[%clk 0:02:43.4]} 16...
Nxe5 {[%clk 0:02:16.5]} 17. fxe5 {[%clk 0:02:39.6]} 17... Bg5 {[%clk 0:02:12.8]}
18. Kg2 {[%clk 0:02:37]} 18... Qd7 {[%clk 0:02:10.6]} 19. Bg1 {[%clk 0:02:34.3]}
19... Qh3+ {[%clk 0:02:04]} 20. Kh1 {[%clk 0:02:35.4]} 20... f6 {[%clk
0:01:57.7]} 21. exf6 {[%clk 0:02:30.8]} 21... Bxf6 {[%clk 0:01:55.4]} 22. e4
{[%clk 0:02:32.4]} 22... Be6 {[%clk 0:01:31]} 23. e5 {[%clk 0:02:31.1]} 23...
Bg5 {[%clk 0:01:29.6]} 24. Ne2 {[%clk 0:02:19.6]} 24... Nd7 {[%clk 0:01:20.7]}
25. Nf4 {[%clk 0:02:14.3]} 25... Bxf4 {[%clk 0:01:21.4]} 26. gxf4 {[%clk
0:02:16.2]} 26... Bg4 {[%clk 0:01:12.4]} 27. Re3 {[%clk 0:02:15.9]} 27... Qh5
{[%clk 0:01:11]} 28. f5 {[%clk 0:02:15.8]} 28... Rf8 {[%clk 0:01:04.7]} 29. Rg3
{[%clk 0:02:13.3]} 29... Qh4 {[%clk 0:00:44.6]} 30. f6 {[%clk 0:02:03.4]} 30...
gxf6 {[%clk 0:00:41.4]} 31. Bf5 {[%clk 0:02:01.9]} 31... h5 {[%clk 0:00:30]} 32.
Bxd7 {[%clk 0:02:02.1]} 32... f5 {[%clk 0:00:31]} 33. Bxf5 {[%clk 0:02:02.3]}
33... Kh8 {[%clk 0:00:29.2]} 34. Rf2 {[%clk 0:01:55]} 34... Rf7 {[%clk
0:00:12.8]} 35. Bxg4 {[%clk 0:01:51.6]} 35... Rg7 {[%clk 0:00:11.4]} 36. Rf4
{[%clk 0:01:33.9]} 36... Rag8 {[%clk 0:00:07.8]} 37. Qf5 {[%clk 0:01:28.1]}
37... hxg4 {[%clk 0:00:05.9]} 38. e6 {[%clk 0:01:27]} 38... Rg6 {[%clk
0:00:06.3]} 39. Qe5+ {[%clk 0:01:27.9]} 39... Kh7 {[%clk 0:00:04.9]} 40. Rf7+
{[%clk 0:01:27.6]} 40... R8g7 {[%clk 0:00:05.8]} 41. Qf5 {[%clk 0:01:27]} 1-0

[Event "*** Titled Tuesday 3|2 Blitz"]
[Site "Chess.com"]
[Date "2016.07.05"]
[Round "4"]
[White "Quiet_Desperation"]
[Black "Alliswell998"]
[Result "0-1"]
[WhiteElo "2185"]
[BlackElo "2173"]
[TimeControl "180+2"]
[EndTime "11:47:40 PDT"]
[Termination "Alliswell998 won by resignation"]

1. e4 {[%clk 0:03:01.9]} 1... c5 {[%clk 0:02:59.2]} 2. Nf3 {[%clk 0:03:03]} 2...
d6 {[%clk 0:03:00.2]} 3. d4 {[%clk 0:03:04.7]} 3... cxd4 {[%clk 0:03:02.1]} 4.
Nxd4 {[%clk 0:03:06.4]} 4... Nf6 {[%clk 0:03:03.6]} 5. Nc3 {[%clk 0:03:07.9]}
5... a6 {[%clk 0:03:05.2]} 6. Be3 {[%clk 0:03:09.1]} 6... e5 {[%clk 0:03:06.4]}
7. Nb3 {[%clk 0:03:10.4]} 7... Be7 {[%clk 0:03:06.7]} 8. f3 {[%clk 0:03:12]}
8... Be6 {[%clk 0:03:08]} 9. Qd2 {[%clk 0:03:13.7]} 9... O-O {[%clk 0:03:09.3]}
10. O-O-O {[%clk 0:03:15.3]} 10... a5 {[%clk 0:03:10.6]} 11. Nd5 {[%clk
0:03:15.4]} 11... Nxd5 {[%clk 0:03:04.4]} 12. exd5 {[%clk 0:03:16.3]} 12... Bf5
{[%clk 0:03:03.5]} 13. Kb1 {[%clk 0:03:17.5]} 13... a4 {[%clk 0:03:00.4]} 14.
Nc1 {[%clk 0:03:18.5]} 14... a3 {[%clk 0:03:01.8]} 15. b3 {[%clk 0:03:19.6]}
15... Na6 {[%clk 0:02:57.4]} 16. Bd3 {[%clk 0:03:20.5]} 16... Qd7 {[%clk
0:02:53.7]} 17. c4 {[%clk 0:03:17.5]} 17... Bxd3+ {[%clk 0:02:44.7]} 18. Nxd3
{[%clk 0:03:18.2]} 18... f5 {[%clk 0:02:46.3]} 19. Nb4 {[%clk 0:03:09.9]} 19...
Bd8 {[%clk 0:02:30.4]} 20. Nxa6 {[%clk 0:03:10.5]} 20... Rxa6 {[%clk 0:02:30.6]}
21. Qc2 {[%clk 0:02:55]} 21... Bb6 {[%clk 0:02:19.9]} 22. Bxb6 {[%clk
0:02:54.8]} 22... Rxb6 {[%clk 0:02:20.7]} 23. Rhe1 {[%clk 0:02:50.1]} 23... Ra6
{[%clk 0:02:14.2]} 24. Qc3 {[%clk 0:02:38.8]} 24... Rc8 {[%clk 0:02:10.5]} 25.
Qb4 {[%clk 0:02:16.3]} 25... Raa8 {[%clk 0:01:47.2]} 26. Rc1 {[%clk 0:02:13.6]}
26... Qc7 {[%clk 0:01:38]} 27. Red1 {[%clk 0:02:06]} 27... g6 {[%clk 0:01:30.9]}
28. Rc2 {[%clk 0:02:03]} 28... Qc5 {[%clk 0:01:29.4]} 29. Qxc5 {[%clk 0:02:03]}
29... Rxc5 {[%clk 0:01:29.1]} 30. b4 {[%clk 0:02:02.9]} 30... Rc7 {[%clk
0:01:26.1]} 31. c5 {[%clk 0:02:02.2]} 31... Ra4 {[%clk 0:01:16.9]} 32. Rc4
{[%clk 0:01:51.2]} 32... b5 {[%clk 0:00:53.3]} 33. Rh4 {[%clk 0:01:24.5]} 33...
dxc5 {[%clk 0:00:45.1]} 34. d6 {[%clk 0:01:25.5]} 34... Rd7 {[%clk 0:00:41.1]}
35. Kc2 {[%clk 0:01:26.5]} 35... c4 {[%clk 0:00:34.8]} 36. g4 {[%clk 0:01:19.8]}
36... Ra6 {[%clk 0:00:32]} 37. gxf5 {[%clk 0:01:20.7]} 37... Raxd6 {[%clk
0:00:30.3]} 38. Rxd6 {[%clk 0:01:20.8]} 38... Rxd6 {[%clk 0:00:31.5]} 39. fxg6
{[%clk 0:01:21.9]} 39... hxg6 {[%clk 0:00:32.7]} 40. Re4 {[%clk 0:01:16.8]}
40... Rd5 {[%clk 0:00:29.3]} 41. h4 {[%clk 0:01:15.4]} 41... Kf7 {[%clk
0:00:28.1]} 42. f4 {[%clk 0:01:15.5]} 42... Kf6 {[%clk 0:00:25.5]} 43. fxe5+
{[%clk 0:01:10.8]} 43... Rxe5 {[%clk 0:00:26.5]} 44. Rd4 {[%clk 0:01:12.4]}
44... Re2+ {[%clk 0:00:25]} 45. Kb1 {[%clk 0:01:10.6]} 45... Rb2+ {[%clk
0:00:24.2]} 46. Kc1 {[%clk 0:01:10.5]} 0-1